bitfinex/quotes_ETHUSD_20230403
["timestamp","ask_amount","ask_price","bid_price","bid_amount"]
[1680518990655,2.51525376,1809.8,1809.7,7.80599626]
[1680518990859,2.51525376,1809.8,1809.7,7.22795984]
[1680518991363,2.51525376,1809.8,1809.7,8.38530771]
[1680518991551,2.51525376,1809.8,1809.7,7.51908284]
[1680518991758,2.5,1809.8,1809.7,7.51908284]
[1680518991959,2.5,1809.8,1809.7,8.07165284]
[1680518994741,2.5,1809.8,1809.7,7.51908284]
[1680518994983,2.5,1809.8,1809.7,0.8741625]
[1680518995282,2.5,1809.8,1809.6,0.58358571]
[1680518995469,2.5,1809.8,1809.6,0.57758571]
[1680518995876,0.01643771,1809.7,1809.6,0.57758571]
[1680518996772,0.01643771,1809.7,1809.5,1.44374821]
[1680518996973,2.78776728,1809.6,1809.5,0.57758571]
[1680518997310,3.59799728,1809.6,1809.3,0.08987001]
[1680518997620,0.19343,1809.4,1809.3,0.08387001]
[1680518997747,3.29458484,1809.4,1809.3,0.08387001]
[1680518997943,3.68144484,1809.4,1809.3,0.08387001]
[1680518999889,3.69787765,1809.4,1809.3,0.08387001]
[1680519004391,9.51187765,1809.4,1809.3,0.08387001]
[1680519004690,9.51387765,1809.4,1809.3,0.08387001]
[1680519007290,3.70387765,1809.4,1809.3,0.08387001]
[1680519007493,3.22763009,1809.4,1809.3,0.08387001]
[1680519008299,3.22516505,1809.4,1809.3,0.08387001]
[1680519024204,3.03420009,1809.4,1809.3,0.08387001]
[1680519024384,3.22763009,1809.4,1809.3,0.08387001]
[1680519025681,0.01643281,1809.4,1809.3,0.08387001]
[1680519026095,0.20986281,1809.4,1809.3,0.08387001]
[1680519027388,0.43986281,1809.4,1809.3,0.08387001]
[1680519027827,3.61449009,1809.4,1809.3,0.08387001]
[1680519028022,4.0448391,1809.4,1809.3,0.08387001]
[1680519028444,4.7278391,1809.4,1809.3,0.08387001]
[1680519030594,3.22763009,1809.4,1809.3,0.08387001]
[1680519031729,3.03420009,1809.4,1809.3,0.08387001]
[1680519032034,3.22763009,1809.4,1809.3,0.08387001]
[1680519034218,3.61449009,1809.4,1809.3,0.08387001]
[1680519039158,4.29749009,1809.4,1809.3,0.08387001]
[1680519039326,4.8048121,1809.4,1809.3,0.08387001]
[1680519043309,4.1218121,1809.4,1809.3,0.08154563]
[1680519047721,4.1218121,1809.4,1809.3,0.08154563]
[1680519057352,6.07502393,1809.4,1809.3,0.08154563]
[1680519057515,11.31702796,1809.4,1809.3,0.08154563]
[1680519057720,12.18531604,1809.4,1809.3,0.08154563]
[1680519058453,12.7649444,1809.4,1809.3,0.08154563]
[1680519058653,11.89665632,1809.4,1809.3,0.08154563]
[1680519059658,12.18531604,1809.4,1809.3,0.08154563]
[1680519060356,15.18531604,1809.4,1809.3,0.08154563]
[1680519060572,16.18257043,1809.4,1809.3,0.08154563]
[1680519060929,16.7621984,1809.4,1809.3,0.08154563]
[1680519061366,16.18257043,1809.4,1809.3,0.08154563]
[1680519064074,15.89368175,1809.4,1809.3,0.08154563]
[1680519067178,15.88846589,1809.4,1809.3,0.07779163]
[1680519070360,16.57746589,1809.4,1809.3,0.07779163]
[1680519070961,16.85376418,1809.4,1809.3,0.07779163]
[1680519072376,20.5364018,1809.4,1809.3,0.07779163]
[1680519073077,20.82529048,1809.4,1809.3,0.07779163]
[1680519073442,20.71919181,1809.4,1809.3,0.07779163]
[1680519074443,19.85090373,1809.4,1809.3,0.07779163]
[1680519075074,20.14029048,1809.4,1809.3,0.07779163]
[1680519075581,20.71906959,1809.4,1809.3,0.07779163]
[1680519077476,19.85078151,1809.4,1809.3,0.07779163]
[1680519084902,20.14029048,1809.4,1809.3,0.07779163]
[1680519085903,21.29798623,1809.4,1809.3,0.07779163]
[1680519086282,20.14029048,1809.4,1809.3,0.07779163]
[1680519088996,20.14029048,1809.4,1809.3,0.0739662]
[1680519092715,20.14029048,1809.4,1809.3,0.0239662]
[1680519096692,21.29798623,1809.4,1809.3,0.0239662]
[1680519096915,21.29799376,1809.4,1809.3,0.0239662]
[1680519097781,20.14029801,1809.4,1809.3,0.0239662]
[1680519098614,20.42969815,1809.4,1809.3,0.0239662]
[1680519099300,16.0577082,1809.4,1809.3,0.0239662]
[1680519099497,15.76855972,1809.4,1809.3,0.0239662]
[1680519102324,16.92625547,1809.4,1809.3,0.0239662]
[1680519102492,16.0577082,1809.4,1809.3,0.0239662]
[1680519108298,16.41980574,1809.4,1809.3,0.0239662]
[1680519108698,9.1718117,1809.4,1809.3,0.0239662]
[1680519109435,9.4600879,1809.4,1809.3,0.0239662]
[1680519109639,9.17180765,1809.4,1809.3,0.0239662]
[1680519110631,10.3295034,1809.4,1809.3,0.0239662]
[1680519110937,9.17180765,1809.4,1809.3,0.0239662]
[1680519112199,10.32959614,1809.4,1809.3,0.0239662]
[1680519112399,9.4600879,1809.4,1809.3,0.0239662]
[1680519112824,10.32959771,1809.4,1809.3,0.0239662]
[1680519113022,9.17190196,1809.4,1809.3,0.0239662]
[1680519114203,10.32959771,1809.4,1809.3,0.0239662]
[1680519117512,10.32959771,1809.4,1809.3,0.02056085]
[1680519118630,6.17190196,1809.4,1809.3,0.02056085]
[1680519118939,5.88210429,1809.4,1809.3,0.70956085]
[1680519119508,5.88210429,1809.4,1809.3,0.85941694]
[1680519119709,4.91553215,1809.4,1809.3,0.85941694]
[1680519119911,4.91353215,1809.4,1809.3,0.85941694]
[1680519120726,5.49324429,1809.4,1809.3,0.85941694]
[1680519120955,5.49524429,1809.4,1809.3,0.85941694]
[1680519122028,4.91553215,1809.4,1809.3,0.17041694]
[1680519122240,4.91353215,1809.4,1809.3,0.17041694]
[1680519124554,5.43294761,1809.4,1809.3,0.17041694]
[1680519124754,5.43494761,1809.4,1809.3,0.17041694]
[1680519128848,5.24151761,1809.4,1809.3,0.17041694]
[1680519129020,0.76784827,1809.4,1809.3,0.17041694]
[1680519129226,0.53584827,1809.4,1809.3,0.85941694]
[1680519134149,0.72927827,1809.4,1809.3,0.85941694]
[1680519137167,0.72671775,1809.4,1809.3,0.85941694]
[1680519137668,0.73175618,1809.4,1809.3,0.85941694]
[1680519142084,0.73175618,1809.4,1809.3,0.17041694]
[1680519143836,4.13638346,1809.4,1809.3,0.02056085]
[1680519158573,4.7160956,1809.4,1809.3,0.02056085]
[1680519160042,4.7160956,1809.4,1809.3,0.01677495]
[1680519163498,5.4010956,1809.4,1809.3,0.01677495]
[1680519163700,5.4030956,1809.4,1809.3,0.01677495]
[1680519164003,6.94200929,1809.4,1809.3,0.01677495]
[1680519164423,6.94722515,1809.4,1808.8,17.87947187]
[1680519164600,3.01776728,1809.3,1808.8,17.87947187]
[1680519164782,0.58038,1809.2,1808.8,17.87947187]
[1680519164987,3.01776728,1809.1,1808.8,17.87947187]
[1680519165187,0.19347,1809.0,1808.8,17.87947187]
[1680519167189,0.19028959,1809.0,1808.8,17.88547187]
[1680519167812,0.19028959,1809.0,1808.9,1.78854719]
[1680519170431,0.70221218,1809.0,1808.9,1.78854719]
[1680519171097,0.51192259,1809.0,1808.9,1.78854719]
[1680519172936,0.52981633,1809.0,1808.9,1.78854719]
[1680519174836,0.52981633,1809.0,1808.8,17.88547187]
[1680519175036,0.72328633,1809.0,1808.8,17.88547187]
[1680519177029,3.22328633,1809.0,1808.8,17.88547187]
[1680519178179,3.02981633,1809.0,1808.8,17.88547187]
[1680519179073,3.22328633,1809.0,1808.8,17.88547187]
[1680519179233,3.22328633,1809.0,1808.8,19.93953531]
[1680519181084,3.02981633,1809.0,1808.8,19.93953531]
[1680519181245,3.22328633,1809.0,1808.8,19.93953531]
[1680519187286,3.22328633,1809.0,1808.8,19.93753531]
[1680519187786,3.02981633,1809.0,1808.8,19.93953531]
[1680519191382,3.22328633,1809.0,1808.8,19.93953531]
[1680519191682,3.02981633,1809.0,1808.8,19.93953531]
[1680519196409,3.02981633,1809.0,1808.8,18.75163437]
[1680519198378,3.02981633,1809.0,1808.9,0.57758571]
[1680519213532,3.22328633,1809.0,1808.9,0.57758571]
[1680519213741,3.02981633,1809.0,1808.9,0.57758571]
[1680519213922,3.22328633,1809.0,1808.9,0.57758571]
[1680519214129,3.02981633,1809.0,1808.9,0.57758571]
[1680519214344,3.22328633,1809.0,1808.9,0.57758571]
[1680519214603,3.02981633,1809.0,1808.9,0.57758571]
[1680519214805,3.22328633,1809.0,1808.9,0.57758571]
[1680519215799,7.29152356,1809.0,1808.9,0.57758571]
[1680519215999,7.29352356,1809.0,1808.9,0.57758571]
[1680519216404,6.90657356,1809.0,1808.9,0.57758571]
[1680519218101,7.29352356,1809.0,1808.8,1.44374821]
[1680519218306,3.01776728,1808.9,1808.8,1.44374821]
[1680519218512,3.21124728,1808.9,1808.8,1.44374821]
[1680519219002,3.21124728,1808.9,1808.8,0.57758571]
[1680519219409,3.71788971,1808.9,1808.8,0.57758571]
[1680519220249,3.73588617,1808.9,1808.8,0.57758571]
[1680519220711,0.75463889,1808.9,1808.8,0.57758571]
[1680519220915,0.75463889,1808.9,1808.8,1.44374821]
[1680519221548,0.75463889,1808.9,1808.8,0.57758571]
[1680519221848,0.94811889,1808.9,1808.8,0.57758571]
[1680519222244,3.73588617,1808.9,1808.8,0.57758571]
[1680519225436,4.12285617,1808.9,1808.8,0.57758571]
[1680519226098,4.12285617,1808.9,1808.7,1.54374821]
[1680519226942,4.12285617,1808.9,1808.7,0.67758571]
[1680519227548,4.78586337,1808.9,1808.7,0.67758571]
[1680519229311,4.78586337,1808.9,1808.7,0.1]
[1680519231113,2.78776728,1808.8,1808.7,0.1]
[1680519231469,4.09501482,1808.8,1808.7,0.1]
[1680519231670,4.09240624,1808.8,1808.7,0.1]
[1680519233406,4.71692673,1808.8,1808.7,0.1]
[1680519235488,4.73492156,1808.8,1808.7,0.1]
[1680519239406,4.23815402,1808.8,1808.7,0.1]
[1680519240418,5.60815402,1808.8,1808.7,0.1]
[1680519240712,5.61015402,1808.8,1808.7,0.1]
[1680519241113,5.61215402,1808.8,1808.7,0.1]
[1680519245172,11.42615402,1808.8,1808.7,0.1]
[1680519248392,5.61215402,1808.8,1808.7,0.1]
[1680519248779,11.42615402,1808.8,1808.7,0.1]
[1680519253912,11.43136988,1808.8,1808.7,0.1]
[1680519254120,18.90382336,1808.8,1808.7,0.1]
[1680519254414,19.17490579,1808.8,1808.7,0.1]
[1680519254721,19.18012165,1808.8,1808.7,0.1]
[1680519255272,19.46991932,1808.8,1808.7,0.1]
[1680519255812,19.46470346,1808.8,1808.7,0.09628361]
[1680519259418,21.67670346,1808.8,1808.7,0.09628361]
[1680519259584,19.46470346,1808.8,1808.7,0.09628361]
[1680519260624,19.46470346,1808.8,1808.7,0.00028361]
[1680519261324,54.46470346,1808.8,1808.7,0.00028361]
[1680519261984,53.77770346,1808.8,1808.7,0.00028361]
[1680519262197,53.09470346,1808.8,1808.7,0.00028361]
[1680519262625,52.80224465,1808.8,1808.7,0.00028361]
[1680519264927,17.80224465,1808.8,1808.7,0.00028361]
[1680519266429,20.88375446,1808.8,1808.7,0.00028361]
[1680519266633,20.01424465,1808.8,1808.7,0.00028361]
[1680519267135,20.88375446,1808.8,1808.7,0.00028361]
[1680519267310,20.30670346,1808.8,1808.7,0.00028361]
[1680519267838,19.62270346,1808.8,1808.7,0.00028361]
[1680519267996,7.31125439,1808.7,1808.5,0.1]
[1680519268198,6.81125439,1808.5,1808.4,0.1]
[1680519268403,14.55961167,1808.5,1808.4,0.1]
[1680519268604,14.83590996,1808.5,1808.4,0.1]
[1680519269437,17.62502838,1808.5,1808.4,0.1]
[1680519269639,18.82753152,1808.5,1808.4,0.1]
[1680519269841,19.37381134,1808.5,1808.3,0.09877494]
[1680519270004,6.81125439,1808.3,1808.2,0.08368698]
[1680519270332,13.81038167,1808.3,1808.2,0.08368698]
[1680519270540,16.81038167,1808.3,1808.2,0.08368698]
[1680519270835,17.43490216,1808.3,1808.2,0.08368698]
[1680519271717,17.45849781,1808.3,1808.2,0.08368698]
[1680519271918,16.46124342,1808.3,1808.2,0.08368698]
[1680519273642,16.4800217,1808.3,1808.2,0.08368698]
[1680519273946,16.4800217,1808.3,1808.2,0.00068698]
[1680519273947,19.96557438,1808.3,1808.2,0.00068698]
[1680519274247,31.17597438,1808.3,1808.2,0.00068698]
[1680519274940,5.814,1808.0,1807.8,0.1]
[1680519275255,12.98050293,1807.9,1807.8,0.1]
[1680519275408,12.98250293,1807.9,1807.8,0.1]
[1680519277255,13.21250293,1807.9,1807.8,0.1]
[1680519280257,13.76662045,1807.9,1807.8,0.1]
[1680519281460,14.6767322,1807.9,1807.8,0.1]
[1680519283866,14.67344032,1807.9,1807.8,0.1]
[1680519286024,13.76332857,1807.9,1807.8,0.1]
[1680519292078,13.78209423,1807.9,1807.8,0.1]
[1680519293852,16.42687428,1807.9,1807.8,0.1]
[1680519295260,16.37687428,1807.9,1807.6,0.03607063]
[1680519295465,2.78776728,1807.7,1807.4,6.31667063]
[1680519295785,1.58537,1807.6,1807.4,6.31667063]
[1680519296102,3.36866728,1807.5,1807.4,6.31667063]
[1680519296254,3.59866728,1807.5,1807.4,6.31667063]
[1680519296955,3.59866728,1807.5,1807.4,0.002]
[1680519297262,3.59866728,1807.5,1807.3,0.006]
[1680519297263,3.59866728,1807.5,1807.2,11.4042]
[1680519297589,0.19365,1807.3,1807.2,11.4042]
[1680519297790,0.42365,1807.3,1807.2,11.4042]
[1680519299763,0.44239278,1807.3,1807.2,11.4042]
[1680519300492,3.61747006,1807.3,1807.2,11.4002]
[1680519300652,3.64106571,1807.3,1807.2,11.4042]
[1680519300849,3.64106571,1807.3,1807.2,0.008]
[1680519301051,4.08335587,1807.3,1807.1,5.9854]
[1680519301253,4.37342728,1807.2,1807.1,5.9854]
[1680519301495,4.37342728,1807.2,1807.1,5.9914]
[1680519301693,4.37342728,1807.2,1807.1,0.102]
[1680519301859,4.37342728,1807.2,1807.1,0.1]
[1680519302513,7.81572544,1807.2,1807.1,0.1]
[1680519302675,7.8229413,1807.2,1807.1,0.1]
[1680519303406,13.6369413,1807.2,1807.1,0.1]
[1680519303611,13.63172544,1807.2,1807.1,0.1]
[1680519303821,13.65046926,1807.2,1807.1,0.1]
[1680519304654,7.3941711,1807.2,1807.1,0.1]
[1680519304882,6.3895011,1807.2,1807.1,0.1]
[1680519305087,3.39471696,1807.2,1807.1,0.1]
[1680519305285,3.3875011,1807.2,1807.1,0.1]
[1680519306806,3.6175011,1807.2,1807.1,0.1]
[1680519307905,0.01874382,1807.2,1807.1,0.1]
[1680519308085,0.21240382,1807.2,1807.1,1.314]
[1680519308285,0.21240382,1807.2,1807.1,1.4454]
[1680519308716,3.0001711,1807.2,1807.1,0.2314]
[1680519308917,3.3875011,1807.2,1807.1,0.1]
[1680519309131,3.0001711,1807.2,1807.1,0.1]
[1680519309337,2.502,1807.3,1807.1,0.1]
[1680519309536,2.5,1807.3,1807.2,8.258]
[1680519309821,0.74771752,1807.9,1807.3,0.27664]
[1680519309822,0.00721586,1807.7,1807.3,0.27664]
[1680519310118,0.1936,1807.8,1807.5,1.217]
[1680519310361,0.58081,1807.8,1807.6,11.2373]
[1680519310559,0.58081,1807.8,1807.6,11.2393]
[1680519311115,0.1936,1807.8,1807.6,11.2393]
[1680519311520,0.38719,1807.9,1807.6,11.2393]
[1680519311727,0.58079,1807.9,1807.7,1.12393]
[1680519312125,3.01776728,1807.8,1807.7,1.12393]
[1680519312395,3.21658314,1807.8,1807.7,1.12393]
[1680519313356,3.21658314,1807.8,1807.6,11.2393]
[1680519313728,3.23474815,1807.8,1807.6,11.2393]
[1680519314337,3.04114815,1807.8,1807.6,11.2393]
[1680519314756,3.03593229,1807.8,1807.6,11.2393]
[1680519314924,3.04114815,1807.8,1807.6,11.2393]
[1680519315125,3.03593229,1807.8,1807.7,1.12393]
[1680519315326,3.04114815,1807.8,1807.7,1.12393]
[1680519317549,0.25338087,1807.8,1807.7,1.12393]
[1680519317743,0.01816501,1807.8,1807.7,1.12393]
[1680519318289,0.01816501,1807.8,1807.7,2.34593]
[1680519322180,0.01816501,1807.8,1807.7,1.12393]
[1680519327455,2.80593229,1807.8,1807.7,1.12393]
[1680519327657,3.03593229,1807.8,1807.6,18.4536]
[1680519327846,0.23,1807.7,1807.6,18.4536]
[1680519329577,0.25009493,1807.7,1807.6,18.4536]
[1680519329888,0.23,1807.7,1807.6,18.4536]
[1680519330182,0.22702113,1807.7,1807.6,18.4536]
[1680519330383,0.22702113,1807.7,1807.6,20.327222]
[1680519330585,0.24711606,1807.7,1807.6,20.327222]
[1680519332693,0.62706021,1807.7,1807.6,20.327222]
[1680519334673,0.62706021,1807.7,1807.6,17.2286]
[1680519335281,0.62706021,1807.7,1807.6,11.2393]
[1680519340811,0.62706021,1807.7,1807.6,11.0893]
[1680519342106,0.62706021,1807.7,1807.6,12.3053]
[1680519344086,0.40003908,1807.7,1807.6,12.5819]
[1680519344288,0.40003908,1807.7,1807.6,13.618814]
[1680519344513,0.40003908,1807.7,1807.6,13.620814]
[1680519345016,0.40003908,1807.7,1807.6,12.402814]
[1680519345420,0.63003908,1807.7,1807.6,12.402814]
[1680519345718,0.63003908,1807.7,1807.6,11.0893]
[1680519356323,0.63003908,1807.7,1807.6,0.002]
[1680519356643,0.63003908,1807.7,1807.5,0.57758571]
[1680519364555,0.86627619,1807.7,1807.5,0.57758571]
[1680519366229,0.23,1807.6,1807.5,0.57758571]
[1680519367530,12.2283949,1807.6,1807.3,3.09859137]
[1680519367857,12.2283949,1807.6,1807.2,0.002]
[1680519367858,9.124,1807.3,1807.2,0.002]
[1680519368059,15.59295402,1807.3,1807.1,0.1]
[1680519368214,8.13182984,1807.2,1807.1,0.1]
[1680519368415,0.232,1807.2,1807.1,0.1]
[1680519368641,0.23,1807.2,1807.1,0.1]
[1680519369158,0.42366,1807.3,1807.1,0.1]
[1680519369334,3.21142728,1807.3,1807.1,0.1]
[1680519369723,0.0200614,1807.2,1807.1,0.1]
[1680519370325,0.2137214,1807.2,1807.1,0.1]
[1680519370663,0.4437214,1807.2,1807.1,0.1]
[1680519374539,0.8310514,1807.2,1807.1,0.1]
[1680519374746,3.61881868,1807.2,1807.1,0.1]
[1680519374928,4.38916755,1807.2,1807.1,0.1]
[1680519376565,7.69916755,1807.2,1807.1,0.1]
[1680519376751,7.70116755,1807.2,1807.1,0.1]
[1680519377494,3.31,1806.7,1806.6,0.691]
[1680519377671,21.11903987,1806.7,1806.5,0.1]
[1680519377973,13.99636293,1806.6,1806.1,0.1]
[1680519378154,3.31,1806.4,1806.1,0.1]
[1680519378469,7.68411728,1806.3,1806.1,0.1]
[1680519378782,0.23,1806.2,1806.1,0.1]
[1680519378984,3.59908728,1806.2,1806.1,0.1]
[1680519379468,7.67822359,1806.2,1806.1,0.1]
[1680519379768,8.31434071,1806.2,1806.1,0.1]
[1680519381348,8.33181014,1806.2,1806.1,0.1]
[1680519389003,4.25267383,1806.2,1806.1,0.1]
[1680519389167,4.25067383,1806.2,1806.1,0.1]
[1680519389367,3.63312383,1806.2,1806.1,0.1]
[1680519389568,4.02067383,1806.2,1806.1,0.1]
[1680519390803,4.25067383,1806.2,1806.1,0.1]
[1680519391318,8.45128116,1806.2,1806.1,0.1]
[1680519391519,8.45328116,1806.2,1806.1,0.1]
[1680519394471,7.56267383,1806.2,1806.1,0.1]
[1680519398210,4.25267383,1806.2,1806.1,0.1]
[1680519398407,4.25067383,1806.2,1806.1,0.1]
[1680519402076,7.56067383,1806.2,1806.1,0.1]
[1680519402281,7.56267383,1806.2,1806.1,0.1]
[1680519402558,8.45328116,1806.2,1806.1,0.1]
[1680519403209,9.68028116,1806.2,1806.1,0.1]
[1680519404921,8.45328116,1806.2,1806.1,0.1]
[1680519405123,8.45328116,1806.2,1805.7,11.2375]
[1680519405325,0.1938,1806.0,1805.7,11.2355]
[1680519406113,0.23,1805.9,1805.7,11.2355]
[1680519406314,0.42381,1805.9,1805.7,11.2355]
[1680519406526,1.05546568,1805.9,1805.7,11.2355]
[1680519406836,0.86165568,1805.9,1805.7,11.2355]
[1680519407425,1.05546568,1805.9,1805.7,11.2355]
[1680519407588,0.86165568,1805.9,1805.7,11.2355]
[1680519407786,2.78776728,1805.8,1805.6,0.008]
[1680519408008,0.23,1805.7,1805.4,11.6569]
[1680519408292,0.42383,1805.7,1805.4,11.70521864]
[1680519408493,0.23,1805.7,1805.4,13.6233005]
[1680519408694,0.42583,1805.7,1805.4,13.3233005]
[1680519408943,0.23,1805.7,1805.4,13.3233005]
[1680519409144,0.02267037,1805.8,1805.4,13.6002405]
[1680519409445,2.78776728,1805.7,1805.4,0.04231864]
[1680519409644,0.60740754,1805.6,1805.1,0.10627725]
[1680519409793,0.60740754,1805.6,1805.4,0.04231864]
[1680519409988,0.60740754,1805.6,1805.3,0.27695]
[1680519410235,0.60740754,1805.6,1805.4,0.04231864]
[1680519410627,0.19382,1805.8,1805.3,0.27695]
[1680519410832,0.23,1805.7,1805.3,12.13915864]
[1680519411131,0.42383,1805.7,1805.3,11.86220864]
[1680519411526,0.01744724,1805.5,1805.3,11.86220864]
[1680519412397,0.19384,1805.6,1805.3,11.86220864]
[1680519413546,0.19386,1805.4,1805.3,11.86220864]
[1680519413692,1.04766106,1805.5,1805.3,11.20371864]
[1680519414523,2.75484293,1805.4,1805.2,0.008]
[1680519414748,0.23,1805.3,1805.1,7.63887725]
[1680519415650,0.23,1805.4,1805.1,7.63287725]
[1680519415820,0.23,1805.4,1805.1,8.21170345]
[1680519416143,0.23,1805.4,1805.1,10.35616987]
[1680519416506,0.02005758,1805.2,1805.1,10.35616987]
[1680519417503,0.61772,1805.4,1805.1,8.55834367]
[1680519417743,0.19387,1805.3,1805.1,6.41387725]
[1680519418647,0.61053555,1805.2,1805.1,6.41387725]
[1680519418941,0.80441555,1805.2,1805.1,6.41387725]
[1680519419242,0.61053555,1805.2,1805.1,6.41387725]
[1680519419423,0.61053555,1805.2,1805.1,0.10627725]
[1680519420054,1.19217555,1805.2,1805.1,0.10627725]
[1680519420242,1.03441555,1805.2,1805.1,0.10627725]
[1680519422141,0.84053555,1805.2,1805.1,0.10627725]
[1680519424172,0.84053555,1805.2,1805.1,0.68510345]
[1680519424872,0.84053555,1805.2,1805.1,0.10627725]
[1680519425104,1.03441555,1805.2,1805.1,0.68510345]
[1680519425273,0.84053555,1805.2,1805.1,0.68510345]
[1680519425474,0.84053555,1805.2,1805.1,0.10627725]
[1680519427333,1.03441555,1805.2,1805.1,0.10627725]
[1680519427581,1.42217555,1805.2,1805.1,0.10627725]
[1680519428484,1.03441555,1805.2,1805.1,0.10627725]
[1680519430577,0.98441555,1805.2,1805.1,0.10627725]
[1680519430987,0.79053555,1805.2,1805.1,0.10627725]
[1680519431679,0.81048622,1805.2,1805.1,0.10627725]
[1680519432843,0.81048622,1805.2,1805.1,7.5050476]
[1680519432844,0.58048622,1805.2,1805.1,7.5050476]
[1680519433058,0.58048622,1805.2,1805.1,8.3608638]
[1680519433485,0.01995067,1805.2,1805.1,8.3608638]
[1680519433647,0.58147,1805.8,1805.1,8.3608638]
[1680519433848,0.03261346,1805.6,1805.2,1.83608638]
[1680519434185,0.03261346,1805.6,1805.2,1.11304638]
[1680519434388,0.03261346,1805.6,1805.2,7.45694638]
[1680519434682,0.50423381,1805.5,1805.2,8.03577258]
[1680519434869,0.03261346,1805.4,1805.3,0.80357726]
[1680519435749,0.03261346,1805.4,1805.3,1.08053726]
[1680519435979,0.03261346,1805.4,1805.3,0.80357726]
[1680519436751,0.03261346,1805.4,1805.3,1.08053726]
[1680519437273,0.03261346,1805.4,1805.3,12.40653726]
[1680519438666,0.53602625,1805.4,1805.3,12.12957726]
[1680519438887,0.55598578,1805.4,1805.3,12.40653726]
[1680519439592,0.55598578,1805.4,1805.3,12.98536346]
[1680519441452,0.55598578,1805.4,1805.3,19.35328346]
[1680519441658,0.55598578,1805.4,1805.3,18.52240346]
[1680519441860,0.55598578,1805.4,1805.3,18.79936346]
[1680519442189,0.55598578,1805.4,1805.3,12.70840346]
[1680519442553,0.55598578,1805.4,1805.3,12.12957726]
[1680519443566,0.55598578,1805.4,1805.3,12.70840346]
[1680519446886,0.55598578,1805.4,1805.3,11.9048262]
[1680519447697,0.97984578,1805.4,1805.3,11.9048262]
[1680519447899,0.78598578,1805.4,1805.3,11.326]
[1680519448077,0.78598578,1805.4,1805.2,7.79908698]
[1680519448273,0.78598578,1805.4,1805.3,0.5788262]
[1680519448472,0.78598578,1805.4,1805.2,6.9247262]
[1680519448473,0.88632892,1805.4,1805.2,6.9247262]
[1680519448698,0.78598578,1805.4,1805.2,6.9227262]
[1680519449092,0.78598578,1805.4,1805.2,7.79108698]
[1680519449292,0.78598578,1805.4,1805.2,6.9227262]
[1680519449588,0.78598578,1805.4,1805.3,0.5788262]
[1680519450187,3.57375306,1805.4,1805.3,0.5788262]
[1680519450401,3.57375306,1805.4,1805.2,0.5788262]
[1680519450402,7.43734793,1805.4,1805.2,0.5788262]
[1680519450605,3.01776728,1805.3,1805.2,0.5788262]
[1680519451600,3.03406413,1805.3,1805.2,0.5788262]
[1680519451809,3.21163728,1805.3,1805.2,0.5788262]
[1680519452168,3.01776728,1805.3,1805.2,0.5788262]
[1680519452371,3.74084171,1805.3,1805.2,0.5788262]
[1680519452805,3.93471171,1805.3,1805.2,0.5788262]
[1680519452982,3.74084171,1805.3,1805.2,0.5788262]
[1680519453368,3.93471171,1805.3,1805.2,0.5788262]
[1680519453703,3.74084171,1805.3,1805.2,0.5788262]
[1680519453905,3.93471171,1805.3,1805.2,0.5788262]
[1680519454408,3.93992757,1805.3,1805.2,0.5788262]
[1680519454770,3.95622576,1805.3,1805.2,0.5788262]
[1680519454972,3.76235576,1805.3,1805.2,0.5788262]
[1680519455168,3.75355127,1805.3,1805.2,0.5788262]
[1680519455368,7.06355127,1805.3,1805.2,0.5788262]
[1680519455581,7.06555127,1805.3,1805.2,0.5788262]
[1680519456108,7.25942127,1805.3,1805.2,0.5788262]
[1680519457392,7.25942127,1805.3,1805.1,1.55346423]
[1680519457598,7.25942127,1805.3,1805.2,0.54621274]
[1680519457795,8.87937713,1805.3,1805.1,0.10627725]
[1680519457970,8.49163713,1805.3,1805.1,0.10627725]
[1680519459989,4.537,1805.2,1805.1,0.10627725]
[1680519460188,7.55476728,1805.2,1805.1,0.10627725]
[1680519460384,7.55676728,1805.2,1805.1,0.10627725]
[1680519460589,7.57306295,1805.2,1805.1,0.10627725]
[1680519460789,7.55676728,1805.2,1805.1,0.10627725]
[1680519462302,6.32976728,1805.2,1805.1,0.10627725]
[1680519462819,6.34606295,1805.2,1805.1,0.10627725]
[1680519464232,7.37169854,1805.2,1805.1,0.10627725]
[1680519464430,8.98645854,1805.2,1805.1,0.10627725]
[1680519465426,8.9916744,1805.2,1805.1,0.10627725]
[1680519467339,12.98892879,1805.2,1805.1,0.10627725]
[1680519467709,18.80292879,1805.2,1805.1,0.10627725]
[1680519472113,18.95692879,1805.2,1805.1,0.10627725]
[1680519472505,17.9596744,1805.2,1805.1,0.10627725]
[1680519481657,3.02351153,1805.2,1805.1,0.10627725]
[1680519481862,0.02151153,1805.2,1805.1,0.10627725]
[1680519482160,0.01629567,1805.2,1805.1,0.10627725]
[1680519483162,2.80406295,1805.2,1805.1,0.10627725]
[1680519483754,2.99794295,1805.2,1805.1,0.10627725]
[1680519483934,2.80406295,1805.2,1805.1,0.10627725]
[1680519484539,2.99794295,1805.2,1805.1,0.10627725]
[1680519484737,3.23315881,1805.2,1805.1,0.10627725]
[1680519484942,3.03927881,1805.2,1805.1,0.10627725]
[1680519486239,3.23315881,1805.2,1805.1,0.10627725]
[1680519486462,3.59544869,1805.2,1805.1,0.10627725]
[1680519486626,4.28844869,1805.2,1805.1,0.10627725]
[1680519486830,3.92615881,1805.2,1805.1,0.10627725]
[1680519487030,4.99991881,1805.2,1805.1,0.10627725]
[1680519487259,10.81391881,1805.2,1805.1,0.10627725]
[1680519487464,10.81591881,1805.2,1805.1,0.10627725]
[1680519488066,11.35812474,1805.2,1805.1,0.10627725]
[1680519488227,12.57148921,1805.2,1805.1,0.11082475]
[1680519490450,15.57148921,1805.2,1805.1,0.11082475]
[1680519494989,14.19248921,1805.2,1805.1,0.11082475]
[1680519496069,15.57748921,1805.2,1805.1,0.11082475]
[1680519503302,15.57748921,1805.2,1805.0,1.98917525]
[1680519503456,7.75816049,1805.1,1805.0,1.98917525]
[1680519503782,14.84884049,1805.1,1805.0,1.98917525]
[1680519505265,15.00812164,1805.1,1805.0,1.98917525]
[1680519506981,14.62033164,1805.1,1805.0,1.98917525]
[1680519507295,14.42644164,1805.1,1805.0,1.98917525]
[1680519507596,14.62033164,1805.1,1805.0,1.98917525]
[1680519508158,15.03171729,1805.1,1805.0,1.98917525]
[1680519509868,14.33871729,1805.1,1805.0,1.98917525]
[1680519510202,14.34393315,1805.1,1805.0,1.98917525]
[1680519512113,14.2930249,1805.1,1805.0,1.98917525]
[1680519512403,15.29027929,1805.1,1805.0,1.98917525]
[1680519512573,16.14351285,1805.1,1805.0,1.98917525]
[1680519512768,15.56657758,1805.1,1805.0,1.98917525]